bitfinex/quotes_SOLUSD_20260311
["timestamp","ask_amount","ask_price","bid_price","bid_amount"]
[1773200549414,0.16063133,85.739,85.71,3.13785041]
[1773200549613,0.16057344,85.759,85.722,1.07642987]
[1773200549926,0.16057344,85.758,85.724,1.07642987]
[1773200550126,0.16057344,85.749,85.718,1.07642987]
[1773200550327,0.16057344,85.749,85.72,1.07642987]
[1773200550634,0.16057344,85.749,85.721,1.07642987]
[1773200551327,0.16051609,85.729,85.705,1.07642987]
[1773200552127,0.16046237,85.728,85.705,1.07642987]
[1773200554316,0.16046237,85.728,85.707,1.07642987]
[1773200554522,0.16035931,85.739,85.711,1.07642987]
[1773200555416,0.16035931,85.739,85.706,12.74422442]
[1773200555626,0.16028114,85.738,85.707,1.07642987]
[1773200560115,0.16028114,85.738,85.71,3.13554527]
[1773200560327,0.16028114,85.738,85.711,1.00600844]
[1773200562914,11.82182075,85.749,85.72,3.13554527]
[1773200563110,0.15987718,85.748,85.721,1.00600844]
[1773200568434,0.15987718,85.748,85.723,1.00600844]
[1773200568630,11.66194357,85.749,85.723,1.00600844]
[1773200569138,0.15960392,85.751,85.731,1.00600844]
[1773200578244,0.15960392,85.751,85.733,1.01491228]
[1773200580242,0.15911693,85.757,85.733,1.01491228]
[1773200580444,29.15043583,85.763,85.71,3.13554527]
[1773200580445,11.65952753,85.767,85.741,1.01491228]
[1773200580621,0.15911693,85.775,85.734,11.66398395]
[1773200580622,11.65908825,85.77,85.751,1.01491228]
[1773200581027,11.65878476,85.773,85.751,1.01491228]
[1773200581935,11.65908825,85.77,85.751,1.01491228]
[1773200584034,0.15911693,85.775,85.753,1.01491228]
[1773200585049,29.14364917,85.782,85.753,1.01491228]
[1773200585050,0.15894509,85.769,85.753,1.01491228]
[1773200585945,11.65908825,85.77,85.753,1.01491228]
[1773200590757,0.15875068,85.769,85.753,1.01491228]
[1773200594152,11.65908825,85.77,85.753,1.01491228]
[1773200603949,0.15821026,85.769,85.753,1.01491228]
[1773200608385,11.65908825,85.77,85.753,1.01491228]
[1773200616564,11.65908825,85.77,85.753,1.16884228]
[1773200617871,11.8168945,85.77,85.753,1.16884228]
[1773200618278,0.15780625,85.769,85.712,3.69383402]
[1773200618585,0.15780625,85.769,85.71,3.13354728]
[1773200618586,0.15780625,85.769,85.74,3.13354728]
[1773200618785,0.15780625,85.769,85.713,3.69383402]
[1773200618979,0.15780625,85.769,85.73,3.13354728]
[1773200619179,0.15780625,85.769,85.74,3.13354728]
[1773200619387,0.15780625,85.769,85.73,3.13354728]
[1773200619683,0.15780625,85.769,85.74,3.13354728]
[1773200620282,0.15780625,85.769,85.741,1.02216283]
[1773200627590,1.03430747,85.768,85.743,1.02216283]
[1773200630988,1.08009992,85.766,85.743,1.02216283]
[1773200634193,1.08009992,85.764,85.743,1.02216283]
[1773200636885,11.66003987,85.763,85.744,1.04510356]
[1773200639097,11.65955647,85.767,85.746,1.04510356]
[1773200641096,11.65955647,85.767,85.748,1.04510356]
[1773200642499,1.08009992,85.767,85.748,1.04510356]
[1773200643302,1.08009992,85.767,85.738,1.04510356]
[1773200643495,1.08009992,85.767,85.734,1.04510356]
[1773200643699,1.08009992,85.766,85.734,1.04510356]
[1773200645391,1.08009992,85.759,85.727,11.66488452]
[1773200645782,1.08009992,85.759,85.728,1.04510356]
[1773200647894,40.81251893,85.758,85.728,1.04510356]
[1773200648098,1.08009992,85.749,85.728,1.04510356]
[1773200649407,1.08009992,85.749,85.713,1.04510356]
[1773200650914,1.08009992,85.747,85.715,1.04510356]
[1773200654890,1.08009992,85.745,85.717,1.04510356]
[1773200655095,1.08009992,85.739,85.717,1.04510356]
[1773200655415,1.08009992,85.739,85.713,1.04510356]
[1773200656099,1.08009992,85.739,85.708,1.04510356]
[1773200661823,3.13354728,85.74,85.711,1.05722352]
[1773200662002,0.99358116,85.749,85.711,1.05722352]
[1773200662600,0.99358116,85.748,85.711,1.05722352]
[1773200664228,0.99358116,85.746,85.713,1.05722352]
[1773200665931,58.29490955,85.771,85.712,11.66697778]
[1773200665932,0.99358116,85.767,85.731,1.05722352]
[1773200666101,0.99358116,85.759,85.728,1.05722352]
[1773200666306,40.80871207,85.766,85.719,1.05722352]
[1773200666307,0.99358116,85.749,85.719,1.05722352]
[1773200666708,0.99358116,85.749,85.721,1.05722352]
[1773200668018,11.66207958,85.748,85.721,1.05722352]
[1773200668207,0.99358116,85.747,85.721,1.05722352]
[1773200671623,11.66235159,85.746,85.721,1.05722352]
[1773200671829,0.99358116,85.745,85.721,1.05722352]
[1773200673119,0.99358116,85.743,85.721,1.05722352]
[1773200676122,12.65647682,85.742,85.721,1.05722352]
[1773200677028,3.13566112,85.76,85.723,1.05722352]
[1773200677240,0.99358116,85.759,85.723,1.05722352]
[1773200677422,0.99358116,85.759,85.731,1.05722352]
[1773200678144,1.07983541,85.757,85.731,1.05722352]
[1773200679839,1.07983541,85.749,85.72,3.13566112]
[1773200680020,1.07983541,85.749,85.721,0.99678122]
[1773200680537,1.07983541,85.755,85.721,0.99678122]
[1773200681841,11.66126361,85.754,85.723,0.99678122]
[1773200682431,11.66126361,85.754,85.731,0.99678122]
[1773200683237,1.07983541,85.753,85.731,0.99678122]
[1773200683623,1.07983541,85.761,85.731,0.99678122]
[1773200684235,1.07983541,85.759,85.733,0.99678122]
[1773200684431,11.66044776,85.76,85.741,0.99678122]
[1773200684625,3.13566112,85.77,85.741,0.99678122]
[1773200684626,1.07983541,85.759,85.741,0.99678122]
[1773200690245,1.09115429,85.749,85.681,1.03282856]
[1773200690448,0.2,85.8,85.61,96.09490383]
[1773200690449,4.22681541,85.72,85.678,29.17895984]
[1773200690652,1.09115429,85.719,85.68,3.13566112]
[1773200691855,1.09115429,85.717,85.67,3.33566112]
[1773200692034,1.09115429,85.717,85.68,3.13566112]
[1773200692548,1.09115429,85.717,85.681,1.03282856]
[1773200692950,11.66616113,85.718,85.691,1.03282856]
[1773200693332,1.09115429,85.717,85.691,1.03282856]
[1773200695442,1.09115429,85.715,85.691,1.03282856]
[1773200699655,1.09115429,85.715,85.691,1.03282856]
[1773200700030,1.09115429,85.715,85.693,1.03282856]
[1773200700234,1.09115429,85.709,85.688,1.03282856]
[1773200700531,1.09115429,85.742,85.701,1.03282856]
[1773200700739,1.09115429,85.762,85.721,1.03282856]
[1773200700967,1.09115429,85.739,85.705,1.03282856]
[1773200701175,1.09115429,85.729,85.69,3.13566112]
[1773200702263,1.09115429,85.727,85.7,3.13566112]
[1773200703062,1.09115429,85.727,85.701,0.29647242]
[1773200706260,1.09115429,85.727,85.703,0.30284121]
[1773200710460,1.09115429,85.725,85.703,0.30284121]
[1773200710761,1.09115429,85.725,85.698,11.66884907]
[1773200711145,1.09115429,85.725,85.693,0.31301473]
[1773200711368,1.09115429,85.725,85.693,11.9824823]
[1773200711550,1.09115429,85.725,85.694,0.31301473]
[1773200711955,1.09115429,85.725,85.7,3.13566112]
[1773200714369,1.09115429,85.723,85.693,11.66946757]
[1773200715068,1.09115429,85.723,85.694,0.31954546]
[1773200718069,1.09115429,85.721,85.696,0.32340486]
[1773200718656,1.09115429,85.721,85.695,11.66929225]
[1773200721873,11.66588894,85.72,85.693,0.32952172]
[1773200722176,1.07219071,85.719,85.693,0.32952172]
[1773200723580,1.07219071,85.717,85.682,0.33188239]
[1773200726088,1.07219071,85.715,85.684,0.33418972]
[1773200732980,3.13566112,85.72,85.686,0.34182552]
[1773200732981,1.07219071,85.713,85.686,0.34182552]
[1773200735370,1.07219071,85.711,85.686,0.34182552]
[1773200737894,1.04687915,85.709,85.681,12.01918531]
[1773200740891,1.04687915,85.699,85.677,11.67171687]
[1773200741090,1.04687915,85.699,85.67,0.2]
[1773200741297,1.04687915,85.689,85.67,0.2]
[1773200742495,1.04687915,85.689,85.671,11.67256131]
[1773200742896,11.66888375,85.698,85.674,0.35276491]
[1773200743077,1.04687915,85.697,85.674,0.35276491]
[1773200744279,11.66888375,85.698,85.674,0.35276491]
[1773200744280,11.66915608,85.696,85.674,0.35276491]
[1773200744491,12.71603523,85.696,85.674,0.35276491]
[1773200744990,1.04687915,85.695,85.674,0.35276491]
[1773200746402,1.04687915,85.693,85.674,0.35276491]
[1773200747789,11.66942843,85.694,85.674,0.35727018]
[1773200748402,1.04687915,85.695,85.674,0.35727018]
[1773200753902,3.1384964,85.71,85.676,1.09322458]
[1773200754105,3.1384964,85.71,85.681,1.09322458]
[1773200755799,3.1384964,85.7,85.671,1.09322458]
[1773200756010,1.06066237,85.688,85.67,0.2]
[1773200759398,1.06066237,85.686,85.67,0.2]
[1773200761598,1.06066237,85.686,85.67,1.29322458]
[1773200762205,3.1384964,85.7,85.671,1.09322458]
[1773200763398,11.66874759,85.699,85.67,0.2]
[1773200763602,11.66874759,85.699,85.672,1.09322458]
[1773200764111,1.06066237,85.698,85.672,1.09322458]
[1773200764810,1.06066237,85.698,85.673,11.67228881]
[1773200765106,1.06066237,85.698,85.674,1.09322458]
[1773200768502,1.06066237,85.698,85.676,1.09322458]
[1773200769608,1.06066237,85.709,85.681,1.09322458]
[1773200774721,1.06066237,85.709,85.683,1.09322458]
[1773200774920,1.06066237,85.709,85.684,1.09322458]
[1773200777325,1.06066237,85.729,85.691,1.09322458]
[1773200779019,1.06066237,85.727,85.693,1.09322458]
[1773200779402,1.06066237,85.719,85.693,1.09322458]
[1773200781226,1.16818283,85.718,85.695,1.15403899]
[1773200782302,3.1384964,85.71,85.689,1.15403899]
[1773200782506,1.16818283,85.709,85.689,1.15403899]
[1773200784806,1.16818283,85.707,85.676,1.15403899]
[1773200788028,1.16818283,85.699,85.678,1.15403899]
[1773200789834,1.16818283,85.699,85.676,11.67185359]
[1773200790133,1.16818283,85.699,85.677,1.15403899]
[1773200792232,1.16818283,85.704,85.681,1.15403899]
[1773200795239,1.16818283,85.702,85.681,1.15403899]
[1773200796337,1.16818283,85.702,85.683,1.15403899]
[1773200796641,1.16818283,85.706,85.683,1.15403899]
[1773200796833,1.10480337,85.704,85.683,1.15403899]
[1773200799244,1.10480337,85.702,85.683,1.15403899]
[1773200801148,1.10480337,85.7,85.671,1.07050255]
[1773200801844,1.10480337,85.699,85.67,0.2]
[1773200802845,11.66888375,85.698,85.67,1.27050255]
[1773200803042,1.10480337,85.697,85.67,1.27050255]
[1773200806647,1.10480337,85.695,85.671,1.07050255]
[1773200809048,1.10480337,85.693,85.671,1.07050255]
[1773200814547,1.10480337,85.693,85.673,1.14855691]
[1773200814850,1.18054651,85.691,85.673,1.14855691]
[1773200816254,11.66970078,85.692,85.673,1.14855691]
[1773200816751,1.18054651,85.692,85.673,1.14855691]
[1773200820250,1.18054651,85.69,85.673,1.14855691]
[1773200820455,1.18054651,85.69,85.67,3.33884215]
[1773200820656,1.18054651,85.69,85.671,1.14855691]
[1773200822764,1.18054651,85.69,85.671,12.82104266]
[1773200822948,1.18054651,85.69,85.672,1.14855691]
[1773200828363,1.18054651,85.69,85.671,11.67248575]
[1773200829062,1.18054651,85.69,85.671,12.82104266]
[1773200829263,1.18054651,85.69,85.672,1.14855691]
[1773200831561,1.18054651,85.69,85.652,1.14855691]
[1773200831562,1.18054651,85.688,85.652,1.14855691]
[1773200831767,1.18054651,85.679,85.652,1.14855691]
[1773200832262,1.18054651,85.679,85.654,1.14855691]
[1773200834163,1.18054651,85.688,85.661,1.14855691]
[1773200834364,1.18054651,85.693,85.671,1.14855691]
[1773200834955,1.18054651,85.723,85.681,1.14855691]
[1773200835265,1.18054651,85.723,85.691,1.14855691]
[1773200837153,1.18054651,85.721,85.692,1.14855691]
[1773200840276,3.13884215,85.71,85.671,1.13938129]
[1773200840456,1.11643788,85.709,85.681,1.13938129]
[1773200844260,1.11643788,85.709,85.683,1.13938129]
[1773200848601,1.11643788,85.709,85.684,11.67079034]
[1773200848878,1.11643788,85.709,85.685,1.13938129]
[1773200851568,1.11643788,85.709,85.687,1.13938129]
[1773200851775,11.66616399,85.718,85.691,1.13938129]
[1773200851776,1.11643788,85.717,85.691,1.13938129]
[1773200853674,1.11643788,85.715,85.692,12.80908207]
[1773200854783,1.11643788,85.715,85.692,11.66970078]
[1773200854982,1.11643788,85.715,85.692,12.80908207]
[1773200855377,1.11643788,85.715,85.692,11.66970078]
[1773200855582,1.11643788,85.715,85.693,1.13938129]
[1773200858989,1.12374478,85.713,85.688,1.11856583]
[1773200865392,1.12374478,85.711,85.69,1.11856583]
[1773200867490,1.12374478,85.711,85.692,1.11856583]
[1773200872377,1.07847906,85.709,85.685,29.1763151]
[1773200872682,1.07847906,85.709,85.686,1.09719173]
[1773200880988,1.07847906,85.709,85.688,1.09719173]
[1773200881183,1.07847906,85.709,85.691,1.09719173]
[1773200884398,1.07847906,85.709,85.693,1.09719173]
[1773200888375,1.07847906,85.707,85.681,1.09719173]
[1773200888581,1.07847906,85.705,85.683,1.09719173]
[1773200892501,1.07847906,85.703,85.673,1.09719173]
[1773200892682,1.07847906,85.699,85.669,1.09719173]
[1773200892888,1.07847906,85.689,85.651,1.09719173]
[1773200893089,11.66806683,85.704,85.653,1.09719173]
[1773200893090,1.07847906,85.679,85.653,1.09719173]
[1773200893982,1.07847906,85.679,85.64,29.29164982]
[1773200893983,1.07847906,85.659,85.64,0.1]
[1773200894178,1.07847906,85.659,85.63,0.1]
[1773200894484,3.69383402,85.677,85.634,1.09719173]
[1773200894485,1.07847906,85.667,85.634,1.09719173]
[1773200895707,1.07847906,85.659,85.634,1.09719173]
[1773200898205,1.07847906,85.659,85.636,1.09719173]
[1773200899188,1.07847906,85.657,85.636,1.09719173]
[1773200902495,1.14731695,85.659,85.638,1.06796751]
[1773200902999,1.14731695,85.658,85.637,11.6771956]
[1773200903512,1.14731695,85.658,85.638,1.06796751]
[1773200908633,1.14731695,85.658,85.62,29.29858469]
[1773200908634,1.11587592,85.649,85.62,0.1]
[1773200908920,1.11587592,85.629,85.62,0.1]
[1773200910622,1.11587592,85.627,85.61,0.1]
[1773200912499,1.11587592,85.619,85.601,1.10319591]
[1773200912700,1.11587592,85.619,85.6,0.1]
[1773200914314,11.67978696,85.618,85.6,0.1]
[1773200914517,1.11587592,85.617,85.6,0.1]
[1773200915613,1.11587592,85.617,85.6,1.20319591]
[1773200917405,1.06434319,85.615,85.59,0.2]
[1773200917704,1.06434319,85.609,85.59,0.2]
[1773200917906,1.06434319,85.626,85.591,1.0988957]
[1773200918112,1.06434319,85.626,85.592,1.0988957]
[1773200918313,1.06434319,85.626,85.601,1.0988957]
[1773200919313,4.20984086,85.62,85.601,1.0988957]
[1773200919512,12.7438883,85.62,85.601,1.0988957]
[1773200921017,12.74219196,85.633,85.602,11.68197004]
[1773200921206,1.06434319,85.632,85.603,1.0988957]
[1773200921403,1.06434319,85.632,85.605,1.0988957]
[1773200921609,1.06434319,85.639,85.605,1.0988957]
[1773200922915,1.06434319,85.635,85.607,1.0988957]
[1773200925235,1.06434319,85.633,85.609,1.0988957]
[1773200925538,1.06434319,85.629,85.609,1.0988957]
[1773200927920,12.74276613,85.628,85.609,1.0988957]
[1773200928125,1.06434319,85.627,85.609,1.0988957]
[1773200929242,1.06434319,85.627,85.611,1.0988957]
[1773200929416,1.14554379,85.639,85.611,1.0988957]
[1773200930737,1.14554379,85.638,85.613,1.0733488]
[1773200930916,1.14554379,85.648,85.613,1.0733488]
[1773200931114,4.29104146,85.64,85.613,1.0733488]
[1773200931733,1.14554379,85.639,85.613,1.0733488]
[1773200932435,1.14554379,85.637,85.613,1.0733488]
[1773200933623,1.14554379,85.637,85.607,1.0733488]
[1773200934439,1.14554379,85.637,85.611,1.0733488]
[1773200934647,1.14554379,85.635,85.612,1.0733488]
[1773200936633,3.14549767,85.63,85.602,1.0733488]
[1773200936834,1.14554379,85.629,85.602,1.0733488]
[1773200940136,11.67842294,85.628,85.602,11.68190465]
[1773200940342,1.14554379,85.627,85.603,1.0733488]
[1773200942729,11.67828656,85.629,85.605,1.0733488]
[1773200943126,12.82383035,85.629,85.605,1.0733488]
[1773200943324,1.14554379,85.628,85.605,1.0733488]
[1773200944726,11.67772671,85.634,85.607,1.0733488]
[1773200945449,1.14554379,85.633,85.607,1.0733488]
[1773200945846,11.67703882,85.639,85.607,1.0733488]
[1773200946034,12.82258261,85.639,85.607,1.0733488]
[1773200946234,12.82258261,85.639,85.611,1.0733488]
[1773200946448,29.18754673,85.653,85.606,40.88498468]
[1773200946449,1.14554379,85.669,85.631,1.0733488]
[1773200946647,1.14554379,85.668,85.631,1.0733488]
[1773200947029,1.14554379,85.666,85.633,1.0733488]
[1773200947229,11.33497593,85.669,85.641,1.0733488]
[1773200947546,11.33497593,85.669,85.651,1.0733488]
[1773200947849,1.14554379,85.667,85.632,11.67787742]
[1773200948353,1.14554379,85.667,85.64,3.14549767]
[1773200949439,1.14554379,85.667,85.641,11.6766502]
[1773200949940,1.14554379,85.667,85.642,1.0733488]
[1773200950258,1.14554379,85.665,85.642,1.0733488]
[1773200951246,1.14554379,85.665,85.65,3.14549767]
[1773200951758,1.14554379,85.665,85.647,1.0733488]
[1773200954557,1.14554379,85.668,85.647,1.0733488]
[1773200955360,23.0079091,85.669,85.649,1.0733488]
[1773200956643,11.67310633,85.667,85.649,1.0733488]
[1773200956843,12.81865012,85.667,85.649,1.0733488]
[1773200957940,1.14554379,85.666,85.649,1.0733488]
[1773200958140,11.67310633,85.667,85.649,1.0733488]
[1773200958141,11.67337885,85.665,85.649,1.0733488]
[1773200958342,1.14554379,85.664,85.635,11.67734636]
[1773200958560,1.14554379,85.659,85.637,1.0733488]
[1773200958761,1.14554379,85.649,85.61,3.14549767]
[1773200958963,1.14554379,85.639,85.619,1.0733488]
[1773200959550,1.14554379,85.639,85.602,1.06858592]
[1773200960365,11.67705924,85.638,85.603,11.68183358]
[1773200960664,1.15501191,85.637,85.604,1.06858592]
[1773200961068,1.15501191,85.637,85.61,3.14549767]
[1773200961272,1.15501191,85.637,85.611,1.06858592]
[1773200962481,1.15501191,85.635,85.612,1.06858592]
[1773200964463,1.15501191,85.633,85.612,1.06858592]
[1773200964964,1.15501191,85.639,85.614,1.06858592]
[1773200965165,12.83197029,85.639,85.614,1.06858592]
[1773200966049,1.15501191,85.638,85.614,1.06858592]
[1773200966557,3.14549767,85.64,85.614,1.06858592]
[1773200966558,1.15501191,85.636,85.614,1.06858592]
[1773200970668,1.15501191,85.634,85.614,1.06858592]
[1773200973451,1.15501191,85.619,85.595,1.06858592]
[1773200973855,1.15501191,85.619,85.59,0.2]
[1773200974173,1.15501191,85.609,85.59,0.2]
[1773200974670,1.15501191,85.632,85.592,1.06858592]
[1773200974851,40.87209369,85.633,85.601,1.06858592]
[1773200974852,1.15501191,85.629,85.601,1.06858592]
[1773200975373,1.15501191,85.627,85.601,1.06858592]
[1773200976071,1.15501191,85.627,85.603,1.06858592]
[1773200976956,1.15501191,85.619,85.591,1.06858592]
[1773200977467,11.67978696,85.618,85.593,1.06858592]
[1773200978965,1.15501191,85.651,85.601,1.06858592]
[1773200979168,1.15501191,85.639,85.601,1.06858592]
[1773200979465,1.15501191,85.627,85.602,1.06858592]
[1773200980356,1.15501191,85.667,85.622,1.06858592]
[1773200980666,1.15501191,85.667,85.62,6.28887976]
[1773200980667,1.15501191,85.659,85.624,1.06858592]
[1773200980864,1.15501191,85.659,85.631,1.06858592]
[1773200981676,1.15501191,85.659,85.633,1.09161688]
[1773200984565,1.15501191,85.659,85.635,1.09161688]
[1773200984764,1.10811153,85.657,85.635,1.09161688]
[1773200989277,12.44308746,85.668,85.641,1.09161688]
[1773200989484,1.10811153,85.667,85.641,1.09161688]
[1773200990784,1.11043672,85.665,85.641,1.09161688]
[1773200991366,1.11043672,85.665,85.643,1.08034408]
[1773200994085,1.11043672,85.663,85.643,1.08034408]
[1773200994390,1.11043672,85.663,85.644,1.08034408]
[1773200994791,11.33497593,85.668,85.644,1.08034408]
[1773200994968,1.11043672,85.691,85.671,1.08034408]
[1773200995767,7.63036783,85.708,85.65,6.28887976]
[1773200995768,1.11043672,85.7,85.68,3.14443988]
[1773200995989,1.11043672,85.7,85.681,1.08034408]
[1773200996180,1.11043672,85.7,85.676,1.08034408]
[1773200996379,1.11043672,85.7,85.68,3.14443988]
[1773200996581,1.11043672,85.7,85.675,11.67197254]
[1773200996784,1.11043672,85.698,85.673,1.08034408]
[1773200996987,1.11043672,85.698,85.68,3.14443988]
[1773201000798,1.11043672,85.696,85.674,12.75249665]
[1773201003609,1.11043672,85.694,85.674,1.08034408]
[1773201004006,1.11043672,85.694,85.65,32.33281584]
[1773201004315,1.11043672,85.694,85.66,3.14443988]
[1773201004604,1.11043672,85.689,85.65,3.14443988]
[1773201006002,40.84585939,85.688,85.65,3.14443988]
[1773201006186,1.11043672,85.687,85.651,11.67528692]
[1773201007191,1.11043672,85.687,85.661,0.70144887]
[1773201009308,40.84109313,85.698,85.662,11.67378767]
[1773201009491,1.11043672,85.697,85.663,0.70344429]
[1773201010592,1.11043672,85.695,85.67,3.14443988]
[1773201012284,1.11043672,85.693,85.67,3.85081676]
[1773201012891,1.11043672,85.693,85.672,0.70732274]
[1773201014607,11.66970078,85.692,85.672,0.70732274]
[1773201014807,1.11043672,85.691,85.67,3.14443988]
[1773201017290,1.11043672,85.691,85.67,3.85542811]
[1773201017814,1.11043672,85.691,85.671,11.67256131]
[1773201018490,131.69599916,85.707,85.66,3.14443988]
[1773201018491,1.11043672,85.689,85.66,3.14443988]
[1773201019098,1.11043672,85.689,85.661,0.71275988]
[1773201019512,1.11043672,85.689,85.67,3.14443988]
[1773201021989,1.11043672,85.689,85.67,3.86062204]
[1773201022302,11.66942319,85.695,85.671,0.71618216]
[1773201022507,1.12646991,85.694,85.671,0.71618216]
[1773201023895,1.12646991,85.694,85.674,0.71781676]
[1773201024203,11.6695646,85.693,85.674,0.71781676]
[1773201026300,1.12646991,85.693,85.674,0.71781676]
[1773201027012,1.12646991,85.705,85.68,3.14443988]
[1773201027214,1.12646991,85.705,85.676,0.7202159]
[1773201028296,1.12646991,85.703,85.676,0.7202159]
[1773201030204,1.12646991,85.701,85.671,0.72254291]
[1773201031908,1.12646991,85.699,85.667,11.67310633]
[1773201032219,1.12646991,85.699,85.67,3.14443988]
[1773201032921,1.12646991,85.697,85.67,3.14443988]
[1773201033121,1.12646991,85.697,85.67,3.86924778]
[1773201034824,11.66915608,85.696,85.67,3.87071252]
[1773201034998,1.12646991,85.695,85.671,0.72627264]
[1773201037105,1.1395468,85.693,85.673,0.72844171]
[1773201039725,11.66779455,85.706,85.675,1.07035566]
[1773201040630,11.66779455,85.706,85.681,1.07035566]
[1773201041528,1.1395468,85.703,85.681,1.07035566]
[1773201042034,1.1395468,85.703,85.682,11.67106276]
[1773201042234,3.1394407,85.72,85.682,11.67106276]
[1773201042235,1.1395468,85.711,85.691,1.07035566]
[1773201042531,1.1395468,85.719,85.691,1.07035566]
[1773201044030,1.1395468,85.717,85.691,1.07035566]
[1773201045811,1.1395468,85.722,85.7,3.1394407]
[1773201046119,11.66560357,85.723,85.7,3.1394407]
[1773201046120,11.66560357,85.723,85.701,1.07035566]
[1773201046320,12.80515037,85.723,85.701,1.07035566]
[1773201046621,1.1395468,85.722,85.701,1.07035566]
[1773201047132,1.1395468,85.719,85.689,11.67000646]
[1773201047622,1.1395468,85.719,85.691,1.07035566]
[1773201048033,1.1395468,85.719,85.692,11.66970078]
[1773201050033,1.11776144,85.709,85.673,11.67228881]
[1773201050334,1.11776144,85.709,85.681,1.12429429]
[1773201054724,40.83156396,85.718,85.681,1.12429429]
[1773201054725,1.11776144,85.707,85.681,1.12429429]
[1773201055940,1.11776144,85.707,85.685,1.12429429]
[1773201057238,1.11776144,85.707,85.69,3.1394407]
[1773201057420,11.66699869,85.712,85.691,1.12429429]
[1773201057626,1.11776144,85.715,85.691,1.12429429]
[1773201063338,1.11776144,85.713,85.69,3.1394407]
[1773201063733,1.11776144,85.713,85.691,1.12429429]
[1773201064743,1.11776144,85.711,85.691,1.12429429]
[1773201066445,1.11776144,85.709,85.658,1.12429429]
[1773201066747,3.1394407,85.71,85.673,1.12429429]
[1773201066748,1.11776144,85.707,85.673,1.12429429]
[1773201067246,1.11776144,85.714,85.691,1.12429429]
[1773201067836,1.11776144,85.714,85.681,1.12429429]
[1773201068747,1.11776144,85.712,85.681,1.12429429]
[1773201068944,1.11776144,85.709,85.677,11.67165078]
[1773201069546,1.11776144,85.709,85.677,12.79594507]
[1773201070150,1.11776144,85.707,85.672,1.12429429]
[1773201070332,1.11776144,85.699,85.672,1.12429429]
[1773201070831,40.83632799,85.708,85.646,1.12429429]
[1773201070832,1.11776144,85.689,85.646,1.12429429]
[1773201071033,1.11776144,85.684,85.661,1.12429429]
[1773201071348,102.5266512,85.707,85.671,1.12429429]
[1773201071349,1.11776144,85.699,85.671,1.12429429]
[1773201072335,1.11776144,85.697,85.673,1.12429429]
[1773201073454,1.11776144,85.697,85.67,3.1394407]
[1773201073767,1.11776144,85.697,85.672,1.12429429]
[1773201075348,1.11776144,85.695,85.672,1.12429429]
[1773201077153,1.11776144,85.695,85.674,1.12429429]
[1773201078468,1.11776144,85.708,85.676,1.12429429]
[1773201078766,1.11776144,85.708,85.681,1.12429429]
[1773201078767,1.11776144,85.707,85.681,1.12429429]
[1773201079636,29.16539417,85.719,85.691,1.2040896]
[1773201079637,11.66619506,85.718,85.691,1.2040896]
[1773201079842,1.1152288,85.717,85.691,1.2040896]
[1773201082052,11.66643333,85.716,85.691,1.2040896]
[1773201082261,1.1152288,85.715,85.691,1.2040896]
[1773201082854,1.1152288,85.715,85.692,1.2040896]
[1773201083355,1.1152288,85.719,85.693,1.2040896]
[1773201083535,1.1152288,85.719,85.682,11.67099661]
[1773201083741,1.1152288,85.719,85.69,3.1394407]
[1773201083961,1.1152288,85.719,85.7,3.1394407]
[1773201084156,1.1152288,85.719,85.696,1.2040896]
[1773201084361,1.1152288,85.717,85.696,1.2040896]
[1773201085758,1.1152288,85.717,85.691,1.2040896]
[1773201086681,1.1152288,85.715,85.691,1.2040896]
[1773201091754,1.1152288,85.713,85.691,1.2040896]
[1773201093274,1.1152288,85.711,85.691,1.2040896]
[1773201094058,1.1152288,85.717,85.701,1.2040896]
[1773201094780,1.1152288,85.717,85.69,3.1394407]
[1773201095777,11.66643333,85.716,85.69,3.1394407]
[1773201095956,1.1152288,85.715,85.69,3.1394407]
[1773201096675,1.1152288,85.715,85.691,0.67386673]
[1773201097260,1.1152288,85.715,85.692,0.67386673]
[1773201097970,1.1152288,85.715,85.694,0.67719571]
[1773201100482,1.20377836,85.726,85.701,0.68041176]
[1773201102383,1.20377836,85.726,85.702,11.66833912]
[1773201102582,1.20377836,85.726,85.703,0.68356384]
[1773201105379,1.20377836,85.726,85.704,11.66806683]
[1773201105680,1.20377836,85.726,85.705,0.68814262]
[1773201105870,1.20377836,85.726,85.704,11.66806683]
[1773201105871,1.40377836,85.73,85.711,0.68962328]
[1773201109383,1.40377836,85.73,85.712,12.36241937]
[1773201111991,1.40377836,85.73,85.712,0.69544159]
[1773201117191,1.12612556,85.728,85.71,3.13740372]
[1773201118586,1.12612556,85.728,85.71,3.84498371]
[1773201119167,1.12612556,85.728,85.711,0.708837]
[1773201120498,0.2,85.73,85.721,0.71010926]
[1773201120797,1.12612556,85.741,85.721,0.71010926]
[1773201121178,1.12612556,85.741,85.687,0.51135178]
[1773201121500,1.12612556,85.741,85.688,0.51135178]
[1773201121501,1.12612556,85.729,85.688,0.51135178]
[1773201121795,1.12612556,85.719,85.69,3.13740372]
[1773201122373,1.12612556,85.719,85.69,3.65014432]
[1773201123794,1.12612556,85.717,85.69,3.13740372]
[1773201123993,1.12612556,85.717,85.687,11.67031353]
[1773201126393,1.12612556,85.715,85.691,0.51812295]
[1773201129479,1.12612556,85.713,85.691,0.51812295]